Cogmind - Beta 13 *** ADVENTURER MODE // 2024.04.06 @ 17:48:44 Player: JitterGlitch Result: Destroyed by G-47 Trooper with Particle Gun Performance ------------- Evolutions (3) 1500 Regions Visited (5) 1000 Robots Destroyed (58) 290 Value Destroyed (1590) 1590 Prototype IDs (3) 60 Alien Tech Used (0) 0 Bonus (65) 65 TOTAL SCORE: 4505 Bonus ------- High Alert Combat Kills 65 Cogmind --------- Core Integrity 0/700 Matter 3/300 Energy 250/250 System Corruption 0% Temperature Cool (9) Movement Core (300) Ox5 Location -7/Factory Parts ------- > --- POWER (3) -------- Micro Nuclear Core Micro Nuclear Core Micro Nuclear Core > --- PROPULSION (4) --- (None) > --- UTILITY (3) ------ Improved Terrain Scan Processor > --- WEAPON (3) ------- (None) > --- INVENTORY (5) ---- Small Laser Assault Cannon Peak State ------------ > --- POWER ------------ Nuclear Core > --- PROPULSION ------- Compact Wheel Compact Wheel Armored Huge Wheel > --- UTILITY ---------- Small Storage Unit Advanced Weight Redist. System Improved Terrain Scan Processor > --- WEAPON ----------- High-powered Shotgun Assault Cannon Improved Grenade Launcher > --- INVENTORY -------- Light Treads Compact Wheel Matter Filter Small Laser Advanced Beam Cannon Improved Grenade Launcher Improved Grenade Launcher [Rating: 30] Favorites ----------- Power Nuclear Core Engine Ion Engine Power Core Nuclear Core Propulsion Aluminum Leg Treads Light Treads Leg Aluminum Leg Wheel Compact Wheel Utility Small Storage Unit Device Advanced Weight Redist. System Storage Small Storage Unit Processor Improved Terrain Scan Processor Weapon Improved Grenade Launcher Energy Gun Small Laser Energy Cannon Advanced Beam Cannon Ballistic Gun Assault Rifle Ballistic Cannon Assault Cannon Launcher Improved Grenade Launcher Build | -11 -10 -10 -9 -8 -7 ------- Run | Yrd Mat Min Mat Mat Fac Slots Evolved 6 | . . . 2 2 2 Power 2 | . . . 1 1 . Propulsion 2 | . . . 1 . 1 Utility 1 | . . . . 1 . Weapon 1 | . . . . . 1 Parts Attached 59 | 6 1 . 21 17 14 Power 15 | 1 . . 7 3 4 Engine 10 | 1 . . 7 1 1 Core 5 | . . . . 2 3 Reactor . | . . . . . . Propulsion 15 | 2 . . 5 2 6 Treads 2 | . . . . 1 1 Leg 9 | 2 . . 5 1 1 Wheel 4 | . . . . . 4 Hover . | . . . . . . Flight . | . . . . . . Utility 7 | 1 1 . 3 2 . Device 5 | . 1 . 3 1 . Storage 1 | 1 . . . . . Processor 1 | . . . . 1 . Hackware . | . . . . . . Protection . | . . . . . . Artifact . | . . . . . . Weapon 22 | 2 . . 6 10 4 Energy Gun 7 | 1 . . 3 3 . Energy Cannon 3 | . . . . 2 1 Ballistic Gun 2 | 1 . . . . 1 Ballistic Cannon 1 | . . . . 1 . Launcher 9 | . . . 3 4 2 Special Weapon . | . . . . . . Impact Weapon . | . . . . . . Slashing Weapon . | . . . . . . Piercing Weapon . | . . . . . . Special Melee Weapon . | . . . . . . Unidentified Prototypes 3 | . . . 1 2 . Parts Lost 29 | . . . 5 10 14 Power 8 | . . . 2 4 2 Propulsion 11 | . . . 2 3 6 Utility 4 | . . . 1 1 2 Weapon 6 | . . . . 2 4 Highest Loss Streak 10 | . . . 2 3 10 To Critical Strikes 1 | . . . . 1 . Average Slot Usage (%) 67 | . 93 100 89 62 43 Engine 9 | . 14 14 19 9 . Core 5 | . . . . 9 5 Leg 11 | . 28 28 28 4 . Wheel 2 | . . . . . 10 Device 6 | . 7 14 10 3 4 Storage 8 | . 14 14 11 9 3 Processor 4 | . . . . 6 7 Energy Gun 5 | . 14 14 10 4 . Energy Cannon 1 | . . . . 2 . Ballistic Gun 2 | . 14 14 . . 2 Ballistic Cannon 3 | . . . . 6 2 Launcher 4 | . . . 9 4 3 Naked Turns . | . . . . . . Heaviest Build 30 | 13 14 14 29 30 23 Greatest Support 69 | 20 20 20 30 29 69 Greatest Overweight (x) 9 | . . . 4 9 5 Average Overweight (x) . | . . . . 2 . Largest Inventory Capacity 8 | 8 8 8 8 8 8 Average Capacity 7 | 6 8 8 8 8 6 Most Carried 8 | 3 1 6 8 8 8 Average Carried 5 | . . 3 6 5 5 Final Capacity 8 | 8 8 8 8 8 5 Final Carried 6 | . . 6 3 5 2 Class Distribution -------------------- 81% | Mutant 16% | Scavenger-Mutant Dominant Class ---------------- Mutant | -10/Materials Mutant | -10/Mines Mutant | -9/Materials Mutant | -8/Materials Mutant | -7/Factory Resources | -11 -10 -10 -9 -8 -7 ----------- Run | Yrd Mat Min Mat Mat Fac Matter Collected 835 | 97 16 64 281 328 49 Remotely . | . . . . . . Salvage Created 1521 | . 53 140 595 447 286 Parts 102 | . 4 12 52 24 10 Haulers Intercepted 1 | . . . 1 . . Recyclers Shooed 3 | . . . . 2 1 Parts Field Recycled . | . . . . . . Retrieved Matter . | . . . . . . Parts Self-Destructed . | . . . . . . Prevented . | . . . . . . Kills | -11 -10 -10 -9 -8 -7 ------- Run | Yrd Mat Min Mat Mat Fac Combat Hostiles Destroyed 44 | . 1 6 17 13 7 Guns 16 | . 1 6 6 1 2 Cannons 8 | . . . . 6 2 AOE 20 | . . . 11 6 3 Classes Destroyed 11 | . 2 1 7 1 . Worker 4 | . . . 3 1 . Builder 2 | . . . 2 . . Hauler 1 | . . . 1 . . Recycler 1 | . . . 1 . . Mechanic 1 | . . . 1 . . Watcher 5 | . 1 . 3 1 . Swarmer 16 | . . 4 8 4 . Grunt 17 | . 1 2 7 2 5 Duelist 2 | . . . 1 . 1 Sentry 8 | . . . 1 6 1 Hunter 1 | . . . . 1 . Best Kill Streak 12 | . 1 3 12 5 4 Combat Bots Only 6 | . 1 3 6 5 4 Max Kills in Single Turn 5 | . 1 1 5 4 2 Gunslinging . | . . . . . . Exploded 4 | . . . 3 4 2 Melee . | . . . . . . Uniques/NPCs Destroyed . | . . . . . . Combat | -11 -10 -10 -9 -8 -7 -------- Run | Yrd Mat Min Mat Mat Fac Hostile Shots Fired 463 | . 8 24 60 132 239 Missed 155 | . 2 8 28 41 76 Damage Taken 3600 | . 49 108 586 1140 1717 Core 1015 | . 16 25 116 158 700 Absorbed by Shields . | . . . . . . Ignored by Resistances 1019 | . 13 38 129 326 513 Core Remaining (%) 81 | 100 . 83 71 71 . Volleys Fired 82 | . 5 11 23 31 12 Largest 3 | . 2 2 2 2 3 Hottest 137 | . 60 60 85 123 137 Shots Fired 142 | . 10 22 36 52 22 Gun 82 | . 10 22 21 18 11 Cannon 35 | . . . . 28 7 Launcher 25 | . . . 15 6 4 Special . | . . . . . . Kinetic 42 | . 5 11 . 12 14 Thermal 69 | . 5 11 15 34 4 Explosive 25 | . . . 15 6 4 Electromagnetic 6 | . . . 6 . . Robot Hit Streak 23 | . 4 8 13 23 13 Robot Miss Streak 2 | . 1 1 2 2 2 Penetration Max . | . . . . . . Secondary Targets 3 | . . 1 2 . . Max Gunslinging Chain 1 | . . 1 1 . . Shots Hit Robots 112 | . 6 18 25 43 20 Core Hits 94 | . 3 9 40 19 23 Critical Kills . | . . . . . . Critical Parts Destroyed . | . . . . . . Critical Strikes 3 | . . . 1 2 . Burn 1 | . . . . 1 . Blast 1 | . . . . 1 . Corrupt 1 | . . . 1 . . Melee Attacks . | . . . . . . Impact . | . . . . . . Slashing . | . . . . . . Piercing . | . . . . . . Sneak Attacks . | . . . . . . Combat Hostiles . | . . . . . . Follow-up Attacks . | . . . . . . Damage Inflicted 4263 | . 82 209 1652 1587 733 Guns 954 | . 82 209 199 246 218 Cannons 637 | . . . . 486 151 Explosions 2663 | . . . 1453 847 363 Melee . | . . . . . . Ramming 9 | . . . . 8 1 Kinetic 696 | . 49 120 . 240 287 Thermal 855 | . 33 89 159 492 82 Explosive 2582 | . . . 1372 847 363 Electromagnetic 121 | . . . 121 . . Impact . | . . . . . . Slashing . | . . . . . . Piercing . | . . . . . . Highest Corruption 2 | . . . 1 2 . Average Corruption 1 | . . . 1 2 . Corruption Purged . | . . . . . . Corruption Blocked . | . . . . . . Effects 8 | . . . 5 3 . Message Errors 2 | . . . 1 1 . Heat Flow Errors 2 | . . . . 2 . Energy Discharges 3 | . . . 3 . . Data Loss (minor) 1 | . . . 1 . . Overload Shots . | . . . . . . Overflow Damage 46 | . . . . 36 10 Projectiles . | . . . . . . Explosions 46 | . . . . 36 10 Melee . | . . . . . . Knockbacks 5 | . . . . 3 2 Impact . | . . . . . . Kinetic 4 | . . . . 2 2 Secondary 1 | . . . . 1 . Self-Inflicted Damage 364 | . . . 167 134 63 Shots 13 | . . . 7 3 3 Rammed 3 | . . . . 2 1 Targets Rammed 3 | . . . . 2 1 Kicked . | . . . . . . Crushed . | . . . . . . Highest Temperature 405 | . 12 45 111 405 302 Average Temperature 88 | . 9 25 31 109 144 Received Heat Transfer 1428 | . 36 45 114 486 747 Effects 3 | . . . . 3 . Interference 3 | . . . . 3 . Siege Activations . | . . . . . . Robots Corrupted . | . . . . . . Combat Hostiles . | . . . . . . Parts Fried . | . . . . . . Impact Corruptions . | . . . . . . Robots Melted . | . . . . . . Combat Hostiles . | . . . . . . Parts Melted 5 | . . . . 5 . Heat Transferred 1785 | . 75 200 350 1012 148 Parts Sabotaged . | . . . . . . Parts Stolen . | . . . . . . Parts Stripped . | . . . . . . Power Chain Reactions 2 | . . . 2 . . Alert | -11 -10 -10 -9 -8 -7 ------- Run | Yrd Mat Min Mat Mat Fac Peak Influence 642 | . 43 198 642 450 273 Initial 159 | . . 13 64 159 74 Average 215 | . 13 132 393 247 123 Maximum Alert Level 2 | . . . 2 2 1 Low Security (%) 53 | 100 100 100 21 31 81 Level 1 31 | . . . 10 61 18 Level 2 15 | . . . 68 6 . Level 3 . | . . . . . . Level 4 . | . . . . . . Level 5 . | . . . . . . High Security . | . . . . . . Max Security . | . . . . . . Squads Dispatched 4 | . 1 . 1 1 1 Investigation 2 | . 1 . . . 1 Extermination . | . . . . . . Reinforcement 2 | . . . 1 1 . Assault . | . . . . . . Garrison . | . . . . . . Intercept . | . . . . . . Searches Triggered . | . . . . . . Construction Impeded 1 | . . . 1 . . Haulers Reinforced . | . . . . . . Active Scanning Responses . | . . . . . . Cargo Convoy Interrupts . | . . . . . . Stealth | -11 -10 -10 -9 -8 -7 --------- Run | Yrd Mat Min Mat Mat Fac Distress Signals 4 | . . . 3 1 . Communications Jammed . | . . . . . . Distress Signals . | . . . . . . Times Spotted 70 | . 2 8 20 20 20 Peak Tracking Total 7 | . 1 3 4 5 7 Tactical Retreats 7 | . . 2 . . 5 Traps | -11 -10 -10 -9 -8 -7 ------- Run | Yrd Mat Min Mat Mat Fac Traps Triggered 6 | . 1 . 4 . 1 Indirectly . | . . . . . . Trap Hack Attempts . | . . . . . . Triggered . | . . . . . . Disarmed . | . . . . . . Reprogrammed . | . . . . . . Reused . | . . . . . . Traps Extracted . | . . . . . . Installed . | . . . . . . Triggered . | . . . . . . Machines | -11 -10 -10 -9 -8 -7 ---------- Run | Yrd Mat Min Mat Mat Fac Machines Disabled 10 | . . . 6 3 1 Max in Single Turn 2 | . . . 2 1 1 Machines Repaired . | . . . . . . Machines Dismantled . | . . . . . . Machines Sabotaged . | . . . . . . Overloaded Fab Kills . | . . . . . . Hacking | -11 -10 -10 -9 -8 -7 --------- Run | Yrd Mat Min Mat Mat Fac Machines Accessed 5 | . 1 . 1 1 2 Terminals 5 | . 1 . 1 1 2 Fabricators . | . . . . . . Repair Stations . | . . . . . . Recycling Units . | . . . . . . Scanalyzers . | . . . . . . Garrison Access . | . . . . . . Total Hacks 10 | . 2 . 3 1 4 Successful 5 | . 1 . 2 1 1 Failed 5 | . 1 . 1 . 3 Catastrophic 1 | . . . . . 1 Database Lockouts . | . . . . . . Manual . | . . . . . . Terminals 10 | . 2 . 3 1 4 Fabricators . | . . . . . . Repair Stations . | . . . . . . Recycling Units . | . . . . . . Scanalyzers . | . . . . . . Garrison Access . | . . . . . . Terminal Hacks 5 | . 1 . 2 1 1 Record 1 | . . . 1 . . Branch Access Points 1 | . 1 . . . . Alert Level 1 | . . . 1 . . Zone Layout 2 | . . . . 1 1 Fabricator Hacks . | . . . . . . Repair Station Hacks . | . . . . . . Recycling Unit Hacks . | . . . . . . Scanalyzer . | . . . . . . Garrison Access Hacks . | . . . . . . Unauthorized Hacks . | . . . . . . Terminals . | . . . . . . Fabricators . | . . . . . . Repair Stations . | . . . . . . Recycling Units . | . . . . . . Scanalyzers . | . . . . . . Garrison Access . | . . . . . . Data Cores Recovered . | . . . . . . Used . | . . . . . . Hacking Detections 3 | . . . 1 . 2 Full Trace Events 1 | . . . . . 1 Feedback Events . | . . . . . . Feedback Blocked . | . . . . . . Robot Schematics Acquired . | . . . . . . Robots Built . | . . . . . . Authchips . | . . . . . . Time . | . . . . . . Total Robot Build Rating . | . . . . . . Part Schematics Acquired . | . . . . . . Parts Built . | . . . . . . Authchips . | . . . . . . Time . | . . . . . . Total Part Build Rating . | . . . . . . Parts Repaired . | . . . . . . Time . | . . . . . . Parts Recycled . | . . . . . . Recycled Matter . | . . . . . . Retrieved Matter . | . . . . . . Retrieved Components . | . . . . . . Parts Scanalyzed . | . . . . . . Part Schematics Acquired . | . . . . . . Parts Damaged . | . . . . . . Bothacking | -11 -10 -10 -9 -8 -7 ------------ Run | Yrd Mat Min Mat Mat Fac Used RIF Installer . | . . . . . . Robots Hacked . | . . . . . . Non-combat . | . . . . . . Combat . | . . . . . . Robot Hacks Applied . | . . . . . . Relay Couplers Released . | . . . . . . Fabnet Peak Effective % . | . . . . . . Robots Rewired . | . . . . . . Allies Hacked . | . . . . . . Hacks Repelled . | . . . . . . Allies | -11 -10 -10 -9 -8 -7 -------- Run | Yrd Mat Min Mat Mat Fac Total Allies . | . . . . . . Largest Group . | . . . . . . Highest-Rated Group . | . . . . . . Highest-Rated Ally . | . . . . . . Total Orders . | . . . . . . Ally Attacks . | . . . . . . Total Damage . | . . . . . . Kills . | . . . . . . Allies Corrupted . | . . . . . . Allies Melted . | . . . . . . Intel | -11 -10 -10 -9 -8 -7 ------- Run | Yrd Mat Min Mat Mat Fac Robot Analysis Total . | . . . . . . Derelict Logs Recovered 1 | . . 1 . . . Drone Launches . | . . . . . . Drone Recoveries . | . . . . . . Exploration | -11 -10 -10 -9 -8 -7 ------------- Run | Yrd Mat Min Mat Mat Fac Turns Passed 2529 | 40 115 274 452 1012 636 Spaces Moved 1513 | 28 82 189 269 336 609 Core 415 | 7 . . 9 130 269 Treads 121 | . . . . 62 59 Legs 696 | 21 82 189 260 144 . Wheels 281 | . . . . . 281 Hover . | . . . . . . Flight . | . . . . . . Fastest Speed 50 | 50 120 120 100 120 50 Average Speed 142 | 102 120 120 130 263 92 Slowest Speed 500 | 120 120 120 260 500 300 Overloaded Moves . | . . . . . . Propulsion Burnouts . | . . . . . . Robots Hopped . | . . . . . . Cave-ins Triggered 1 | . . . 1 . . Exploration Rate (%) 30 | 4 32 46 42 42 17 Regions Visited 5 Branch Regions 1 Pre-discovered Areas 2 | . . 2 . . . Known Exits Taken 1 | . 1 . . . . Unknown Exits Taken 4 | 1 . 1 1 1 . Scrap Searched . | . . . . . . Spaces Dug . | . . . . . . Terrain Destroyed 192 | . . . 115 63 14 Melee . | . . . . . . Projectile 1 | . . . . 1 . AOE 191 | . . . 115 62 14 Terrain Rammed . | . . . . . . Walls Destroyed . | . . . . . . Machines Disabled . | . . . . . . Actions | -11 -10 -10 -9 -8 -7 --------- Run | Yrd Mat Min Mat Mat Fac Total 1737 | 39 88 214 330 405 661 Wait 41 | . . 9 5 11 16 Move 1508 | 27 81 188 268 335 609 Hop . | . . . . . . Pick Up 40 | 6 1 6 11 9 7 Fast Attach 10 | . . . 3 2 5 Attach 33 | 6 1 . 12 7 7 Detach 1 | . . . . . 1 Swap 16 | . . . 6 8 2 Drop 3 | . . . 2 . 1 Fire 82 | . 5 11 23 31 12 Melee . | . . . . . . Ram 3 | . . . . 2 1 Kick . | . . . . . . Crush . | . . . . . . Escape Stasis . | . . . . . . Rewire . | . . . . . . Trap . | . . . . . . Miscellaneous . | . . . . . . Route ------- -11/Scrapyard -10/Materials -10/Mines -9/Materials -8/Materials -7/Factory History --------- Turn | Location | Event 22 | -11/Scrapyard | Discovered new exit (range 15) 41 | -11/Scrapyard | Entered Materials 139 | -10/Materials | Identified exit to Mines 156 | -10/Materials | Entered Mines 162 | -10/Mines | Met a Derelict bent on vengeance 302 | -10/Mines | Build established: Mutant 393 | -10/Mines | Discovered new exit (range 10) 396 | -10/Mines | Learned location of Zion (-6) 406 | -10/Mines | Learned location of Storage (-9) 430 | -10/Mines | Entered Materials 430 | -9/Materials | Evolved 2 slots: Power x1, Propulsion x1 587 | -9/Materials | Crushed by falling debris 864 | -9/Materials | Discovered new exit (range 4) 882 | -9/Materials | Entered another Materials area 882 | -8/Materials | Evolved 2 slots: Power x1, Utility x1 1100 | -8/Materials | Lost 3 parts (2n1u) 1859 | -8/Materials | Discovered new exit (range 16) 1894 | -8/Materials | Entered Factory 1894 | -7/Factory | Evolved 2 slots: Propulsion x1, Weapon x1 2340 | -7/Factory | Core integrity fell below 50% 2378 | -7/Factory | Lost 10 parts (1p6n1u2w) 2422 | -7/Factory | Core integrity fell below 20% 2530 | -7/Factory | Destroyed by G-47 Trooper with Particle Gun Last Messages --------------- Com. Wheel destroyed. Penetrated by Slug. Carbon-fiber Leg destroyed. Penetrated by Slug. ALERT: Cargo convoy en route, clear transfer corridor. Penetrated by Slug. Terminal unresponsive. Acquired Mic. Nuclear Core. Connecting with DSF Access... Triggered Ambush Trap. S-27 Virus emerges from a hatch in the floor. G-47 Trooper emerges from a hatch in the floor. U-05 Engineer lays Concrete. Slammed into S-27 Virus. Critical hit (Burn: +37). U-05 Engineer lays Concrete. T-07 Excavator destroyed. U-05 Engineer lays Concrete. Map ----- +----------------------------------------------------+ | #######?????????????????????????? | | #########+######+#???????????????????????????????? | | ????# #??? ??????????????????????????????? | | ????# """ #? """"" #?????????????????????????????? | | ????# """ # """"" #?????????????????????????????? | | ????# """ # """ #?????????????????????????????? | | ????# # #?????????????????????????????? | | ????# # """"" +?????????????????????????????? | | ????#"" #???"""" #?????????????????????????????? | | ????#"" #????" #?????????????????????????????? | | ????#"Y #??????? #?????????????????????????????? | | ????#"" #????????#?????????????????????????????? | | ????#"" #??????????????????????????????????????? | | ????# #??????????????????????????????????????? | | ????#######??????????????????????????????????????? | | ?????????????????????#???????????????????????????? | | ?????????????????????# ??????????????????????????? | | ?????????????????????# ??????????????????????????? | | ?????????????????????# ###############???????????? | | ?????????????????????# ???????????? | | ?????????????????????# ?????????????? | | ?????????????????????# """ "???????????? | | ?????????????????????+ """ ""??????????? | | ?????????????????????# """ """ ????????? | | ?????????????????????# u ????????? | | ?????????????????????# @g """ ????????????? | | ?????????????????????######s """ ????????????? | | ??????????????????????##### """ """ ????????? | | ?????????????????????##T ## ??????? | | ???????############### """ """ ????????? | | ######## ! # *= """ ""??????????? | | !!! + # |%! """ "???????????? | | !!! # """"""""" # """ ????????? | | !!! # # """ """ """?????????? | | + """"""""" # """ """ ""??????????? | | # # """ "???????????? | | ]* #######+####### ???????? | | ] "F*"" """ ""??????????? | | ] """"" """ ????????????? | | """ """" """"" """?????????????? | | """ "F " ?????????????? | | """ ?????????????? | | #######+###### ???????????? | | """ #????????????? ? ???????????? | | ####### """ #???????????????????????????????? | | ??????# """ #???????????????????????????????? | | ??????# ####????????????????????????????? | | ??????# #????????????????????????????? | | ####### #????????????????????????????? | | ! # #????????????????????????????? | +----------------------------------------------------+ Best States ------------- Heat Dissipation 45 Energy Generation 35 Energy Capacity 405 Matter Stores 173 Matter Capacity 300 Sight Range 16 Robot Scan Range 15 Terrain Scan Density 110 Additional Mass Support 9 Resistance: KI 20 Resistance: TH 20 Resistance: EX 20 Resistance: EM 20 Resistance: I 20 Resistance: S 20 Resistance: P 20 Evasion (%) 55 Recoil Reduction 1 Offensive Hacking 10 Item Schematics ----------------- None Robot Schematics ------------------ None Fabricated ------------ Nothing Alien Tech Used ----------------- None Achievements -------------- Unlikely Earthworm Challenges ------------ None Game ------ Seed GrenadeCloakingTube Manual? 0 Play Time 00:38:58 Cumulative 12.4 hours Start 2024.04.06 @ 17:06:35 End 2024.04.06 @ 17:48:44 Sessions 1 Manual Loads 0 Difficulty Adventurer Special Mode None Game No. 14 Rogue 0 Adventurer 14 Explorer 0 Win Type - Total 0 Types 0/0/0/0/0/0/0/0/0 Lore% 18 Gallery% 23 Achievement% 19 Wizard Run 0 Options --------- Layout 1 ASCII 0 Keyboard 0 Movement Mouse Keybinds 0 Fullscreen 1 Font 32/Cog Map View 50x35 Zoom Use 0% Tactical HUD 0 Map Filters NONE Filters NONE Steam 1 RUN: 9c6bbfcf-ac2a-4012-89fc-542ceb6c0cd4